[Event "XXXIX Benasque Open 2019"]
[Site "Benasque"]
[Date "2019.07.04"]
[Round "1.5"]
[White "Deac, Bogdan-Daniel"]
[Black "De Lucas Bello, Federico"]
[Result "1-0"]
[ECO "B23"]
[WhiteElo "2621"]
[BlackElo "1964"]
[Annotator "ChessBase"]
[PlyCount "49"]
[EventDate "2019.07.04"]
[EventType "swiss"]
[EventCountry "ESP"]
[SourceTitle "playchess.com"]
[Source "ChessBase"]
[SourceQuality "1"]
[TimeControl "5400+30"]

1. e4 {[%emt 0:00:00]} c5 {[%emt 0:03:57]} 2. Nc3 {[%emt 0:00:30]} d6 {[%emt 0:00:17]} 3. d4 {[%emt 0:00:05]} cxd4 {[%emt 0:00:25]} 4. Qxd4 {[%emt 0:00:03]} Nc6 {[%emt 0:00:58]} 5. Qd2 {[%emt 0:00:03]} g6 {[%emt 0:00:30]} 6. b3 {[%emt 0:00:02]} Bh6 {[%emt 0:00:45]} 7. f4 {[%emt 0:00:08]} Nf6 {[%emt 0:00:50]} 8. Bb2 {[%emt 0:00:03]} O-O {[%emt 0:00:30]} 9. O-O-O {[%emt 0:00:04]} Bg4 {[%emt 0:01:25]} 10. Be2 {[%emt 0:01:01]} Bxe2 {[%emt 0:01:55]} 11. Ngxe2 {[%emt 0:00:05]} Rc8 {[%emt 0:02:04]} 12. Kb1 {[%emt 0:04:18]} Bg7 {[%emt 0:05:01]} 13. h3 {[%emt 0:04:28]} a6 {[%emt 0:03:28]} 14. g4 {[%emt 0:00:06]} b5 {[%emt 0:01:48]} 15. Ng3 {[%emt 0:09:11]} Qa5 {[%emt 0:16:58]} 16. Nd5 {[%emt 0:18:52]} Qxd2 {[%emt 0:00:41]} 17. Rxd2 {[%emt 0:00:04]} Nd7 {[%emt 0:02:36]} 18. h4 {[%emt 0:00:28]} Bxb2 {[%emt 0:04:46]} 19. Kxb2 {[%emt 0:00:03]} Rfd8 {[%emt 0:04:12]} 20. h5 {[%emt 0:09:32]} a5 {[%emt 0:02:21]} 21. hxg6 {[%emt 0:05:09]} fxg6 {[%emt 0:00:21]} 22. Rdh2 {[%emt 0:00:04]} Nf8 {[%emt 0:01:52]} 23. f5 {[%emt 0:00:32]} Kf7 {[%emt 0:00:38]} 24. Rxh7+ {[%emt 0:07:17]} Nxh7 {[%emt 0:01:52]} 25. Rxh7+ {[%emt 0:00:02]} 1-0

[Event "XXXIX Benasque Open 2019"]
[Site "Benasque"]
[Date "2019.07.04"]
[Round "1.6"]
[White "Martinez De Navascues, Francisco"]
[Black "Indjic, Aleksandar"]
[Result "0-1"]
[ECO "A01"]
[WhiteElo "1962"]
[BlackElo "2604"]
[Annotator "ChessBase"]
[PlyCount "92"]
[EventDate "2019.07.04"]
[EventType "swiss"]
[EventCountry "ESP"]
[SourceTitle "playchess.com"]
[Source "ChessBase"]
[SourceQuality "1"]
[TimeControl "5400+30"]

1. b3 {[%emt 0:00:00]} e5 {[%emt 0:00:54]} 2. Bb2 {[%emt 0:00:00]} Nc6 {[%emt 0:00:33]} 3. e3 {[%emt 0:00:00]} g6 {[%emt 0:00:55]} 4. d4 {[%emt 0:00:54]} exd4 {[%emt 0:02:21]} 5. Nf3 {[%emt 0:00:03]} Bb4+ {[%emt 0:09:43]} 6. Nbd2 {[%emt 0:04:04]} Bc3 {[%emt 0:00:33]} 7. Bxc3 {[%emt 0:01:46]} dxc3 {[%emt 0:00:09]} 8. Ne4 {[%emt 0:00:37]} Nf6 {[%emt 0:00:19]} 9. Nxc3 {[%emt 0:02:36]} O-O {[%emt 0:00:10]} 10. Be2 {[%emt 0:16:42]} d5 {[%emt 0:01:24]} 11. O-O {[%emt 0:00:46]} Qd6 {[%emt 0:02:20]} 12. Nb5 {[%emt 0:04:53]} Qe7 {[%emt 0:00:09]} 13. c4 {[%emt 0:13:53]} dxc4 {[%emt 0:00:48]} 14. Bxc4 {[%emt 0:00:14]} Na5 {[%emt 0:00:20]} 15. Be2 {[%emt 0:09:56]} a6 {[%emt 0:00:48]} 16. Nc3 {[%emt 0:00:56]} Rd8 {[%emt 0:00:56]} 17. Qc1 {[%emt 0:02:46]} b5 {[%emt 0:00:17]} 18. Rd1 {[%emt 0:00:53]} Bb7 {[%emt 0:02:11]} 19. Qb2 {[%emt 0:02:25]} c5 {[%emt 0:02:04]} 20. Rxd8+ {[%emt 0:04:11]} Rxd8 {[%emt 0:00:32]} 21. Rd1 {[%emt 0:00:08]} Rc8 {[%emt 0:00:14]} 22. Nb1 {[%emt 0:07:46]} Nc6 {[%emt 0:11:22]} 23. a4 {[%emt 0:01:30]} b4 {[%emt 0:02:17]} 24. Nbd2 {[%emt 0:02:29]} Nd5 {[%emt 0:00:10]} 25. Nc4 {[%emt 0:02:50]} Nc3 {[%emt 0:00:20]} 26. Rd3 {[%emt 0:02:38]} Rc7 {[%emt 0:09:04]} 27. Qd2 {[%emt 0:00:48]} Bc8 {[%emt 0:00:17]} 28. Nd6 {[%emt 0:08:57]} Be6 {[%emt 0:00:38]} 29. Bd1 {[%emt 0:01:32]} Bd5 {[%emt 0:06:45]} 30. Nc4 {[%emt 0:05:30]} Bxc4 {[%emt 0:00:13]} 31. bxc4 {[%emt 0:00:02]} Na5 {[%emt 0:01:43]} 32. Rd8+ {[%emt 0:02:49]} Kg7 {[%emt 0:00:09]} 33. Bc2 {[%emt 0:00:52]} Nxc4 {[%emt 0:00:52]} 34. Qd3 {[%emt 0:00:21]} Nb2 {[%emt 0:02:16]} 35. Qd6 Qxd6 {[%emt 0:00:16]} 36. Rxd6 {[%emt 0:00:14]} c4 {[%emt 0:00:13]} 37. Nd4 {[%emt 0:01:37]} b3 {[%emt 0:00:13]} 38. Bxb3 {[%emt 0:00:08]} cxb3 {[%emt 0:00:05]} 39. Nxb3 {[%emt 0:00:10]} Ncxa4 {[%emt 0:00:46]} 40. h4 {[%emt 0:00:36]} Rb7 {[%emt 0:00:51]} 41. Nd4 {[%emt 0:00:08]} Rb6 {[%emt 0:00:25]} 42. Rd7 {[%emt 0:00:04]} Nc5 {[%emt 0:00:16]} 43. Ra7 {[%emt 0:00:04]} Rb7 {[%emt 0:00:09]} 44. Ra8 {[%emt 0:00:10]} Nbd3 {[%emt 0:00:08]} 45. h5 {[%emt 0:00:15]} Rb1+ {[%emt 0:00:14]} 46. Kh2 {[%emt 0:00:08]} Nxf2 {[%emt 0:00:08]} 0-1

[Event "XXXIX Benasque Open 2019"]
[Site "Benasque"]
[Date "2019.07.04"]
[Round "1.7"]
[White "Martinez Alcantara, Jose Eduardo"]
[Black "Gonzalez Manchon, Juan Miguel"]
[Result "1-0"]
[ECO "E63"]
[WhiteElo "2601"]
[BlackElo "1961"]
[Annotator "ChessBase"]
[PlyCount "67"]
[EventDate "2019.07.04"]
[EventType "swiss"]
[EventCountry "ESP"]
[SourceTitle "playchess.com"]
[Source "ChessBase"]
[SourceQuality "1"]
[TimeControl "5400+30"]

1. c4 {[%emt 0:00:00]} g6 {[%emt 0:01:26]} 2. Nf3 {[%emt 0:00:00]} Bg7 {[%emt 0:00:05]} 3. d4 {[%emt 0:00:00]} Nf6 {[%emt 0:00:25]} 4. g3 {[%emt 0:00:08]} O-O {[%emt 0:00:38]} 5. Bg2 {[%emt 0:00:08]} d6 {[%emt 0:00:47]} 6. O-O {[%emt 0:00:18]} Nc6 {[%emt 0:00:18]} 7. Nc3 {[%emt 0:00:06]} a6 {[%emt 0:00:17]} 8. Bf4 {[%emt 0:00:07]} Nxd4 {[%emt 0:06:48]} 9. Qxd4 {[%emt 0:05:31]} e5 {[%emt 0:00:04]} 10. Nxe5 {[%emt 0:03:03]} dxe5 {[%emt 0:00:06]} 11. Bxe5 {[%emt 0:01:31]} c6 {[%emt 0:05:23]} 12. Rad1 {[%emt 0:02:14]} Bf5 {[%emt 0:05:46]} 13. e4 {[%emt 0:08:46]} Bg4 {[%emt 0:04:35]} 14. f3 {[%emt 0:01:42]} Be6 {[%emt 0:00:08]} 15. c5 {[%emt 0:05:00]} Qxd4+ {[%emt 0:03:34]} 16. Rxd4 {[%emt 0:03:35]} Nd5 {[%emt 0:00:37]} 17. Bxg7 {[%emt 0:00:33]} Nxc3 {[%emt 0:00:14]} 18. bxc3 {[%emt 0:00:04]} Kxg7 {[%emt 0:00:06]} 19. a3 {[%emt 0:00:11]} Rae8 {[%emt 0:05:38]} 20. f4 {[%emt 0:01:06]} f6 {[%emt 0:01:24]} 21. h4 {[%emt 0:01:35]} Re7 {[%emt 0:02:01]} 22. Kh2 {[%emt 0:01:58]} Rfe8 {[%emt 0:00:51]} 23. Rb1 {[%emt 0:00:17]} g5 {[%emt 0:05:19]} 24. hxg5 {[%emt 0:04:13]} fxg5 {[%emt 0:00:08]} 25. Rf1 {[%emt 0:00:28]} Bc8 {[%emt 0:04:24]} 26. Rd6 {[%emt 0:05:48]} Rf7 {[%emt 0:10:19]} 27. e5 {[%emt 0:11:48]} Ref8 {[%emt 0:08:13]} 28. e6 {[%emt 0:04:19]} Rf6 {[%emt 0:02:15]} 29. Bh3 {[%emt 0:07:10]} Rh6 {[%emt 0:07:15]} 30. Kg2 {[%emt 0:00:44]} gxf4 {[%emt 0:02:01]} 31. gxf4 {[%emt 0:07:25]} Rh5 {[%emt 0:05:42]} 32. Bg4 {[%emt 0:03:12]} Rxc5 {[%emt 0:07:00]} 33. e7 {[%emt 0:00:01]} Bxg4 {[%emt 0:00:24]} 34. Rd8 {[%emt 0:00:39]} 1-0

[Event "XXXIX Benasque Open 2019"]
[Site "Benasque"]
[Date "2019.07.04"]
[Round "1.8"]
[White "Pes Mateo, Angel"]
[Black "Bartel, Mateusz"]
[Result "0-1"]
[ECO "A47"]
[WhiteElo "1961"]
[BlackElo "2600"]
[Annotator "ChessBase"]
[PlyCount "54"]
[EventDate "2019.07.04"]
[EventType "swiss"]
[EventCountry "ESP"]
[SourceTitle "playchess.com"]
[Source "ChessBase"]
[SourceQuality "1"]
[TimeControl "5400+30"]

1. d4 {[%emt 0:00:00]} Nf6 {[%emt 0:00:00]} 2. Nf3 {[%emt 0:00:00]} b6 {[%emt 0:00:00]} 3. Bf4 {[%emt 0:00:45]} Bb7 {[%emt 0:00:00]} 4. Nbd2 {[%emt 0:00:33]} Nh5 {[%emt 0:01:45]} 5. e3 {[%emt 0:02:28]} Nxf4 {[%emt 0:01:23]} 6. exf4 {[%emt 0:00:15]} g6 {[%emt 0:00:12]} 7. Bd3 {[%emt 0:03:21]} Bg7 {[%emt 0:01:34]} 8. O-O {[%emt 0:02:33]} e6 {[%emt 0:00:07]} 9. Re1 {[%emt 0:03:17]} O-O {[%emt 0:00:11]} 10. c3 {[%emt 0:01:48]} c5 {[%emt 0:03:44]} 11. Ne4 {[%emt 0:04:35]} d5 {[%emt 0:02:49]} 12. Neg5 {[%emt 0:01:37]} Nc6 {[%emt 0:02:18]} 13. Ne5 {[%emt 0:13:56]} cxd4 {[%emt 0:03:02]} 14. cxd4 {[%emt 0:00:32]} Nxd4 {[%emt 0:08:52]} 15. Bxg6 {[%emt 0:04:50]} hxg6 {[%emt 0:05:23]} 16. Qxd4 {[%emt 0:05:36]} f6 {[%emt 0:00:07]} 17. Nxe6 {[%emt 0:03:45]} fxe5 {[%emt 0:00:06]} 18. fxe5 {[%emt 0:06:58]} Qe7 {[%emt 0:00:32]} 19. Nxf8 {[%emt 0:01:05]} Rxf8 {[%emt 0:00:11]} 20. Rac1 {[%emt 0:00:16]} Rf5 {[%emt 0:07:24]} 21. f4 {[%emt 0:02:28]} g5 {[%emt 0:00:35]} 22. g3 {[%emt 0:02:17]} gxf4 {[%emt 0:00:50]} 23. gxf4 {[%emt 0:00:25]} Qh4 {[%emt 0:00:25]} 24. Rf1 {[%emt 0:19:27]} Rxe5 {[%emt 0:05:43]} 25. Qd1 {[%emt 0:02:02]} Re7 {[%emt 0:16:35]} 26. Rc2 {[%emt 0:02:49]} d4 {[%emt 0:00:23]} 27. Rcf2 {[%emt 0:00:57]} Re3 {[%emt 0:01:04]} 0-1

[Event "XXXIX Benasque Open 2019"]
[Site "Benasque"]
[Date "2019.07.04"]
[Round "1.9"]
[White "Markus, Robert"]
[Black "Laplaza Ara, Carlos"]
[Result "1-0"]
[ECO "E06"]
[WhiteElo "2595"]
[BlackElo "1960"]
[Annotator "ChessBase"]
[PlyCount "81"]
[EventDate "2019.07.04"]
[EventType "swiss"]
[EventCountry "ESP"]
[SourceTitle "playchess.com"]
[Source "ChessBase"]
[SourceQuality "1"]
[TimeControl "5400+30"]

1. d4 {[%emt 0:00:00]} d5 {[%emt 0:00:00]} 2. c4 {[%emt 0:00:00]} e6 {[%emt 0:00:00]} 3. Nf3 {[%emt 0:00:00]} Nf6 {[%emt 0:00:00]} 4. g3 {[%emt 0:00:00]} Be7 {[%emt 0:00:52]} 5. Bg2 {[%emt 0:00:09]} O-O {[%emt 0:00:24]} 6. O-O {[%emt 0:01:17]} b6 {[%emt 0:02:34]} 7. cxd5 {[%emt 0:01:53]} exd5 {[%emt 0:00:21]} 8. Nc3 {[%emt 0:00:52]} Bb7 {[%emt 0:03:26]} 9. b3 {[%emt 0:01:16]} c5 {[%emt 0:00:49]} 10. Bb2 {[%emt 0:00:15]} Nc6 {[%emt 0:00:38]} 11. Rc1 {[%emt 0:01:24]} Rc8 {[%emt 0:00:59]} 12. e3 {[%emt 0:11:19]} Ne4 {[%emt 0:10:28]} 13. dxc5 {[%emt 0:02:09]} Nxc3 {[%emt 0:02:33]} 14. Bxc3 {[%emt 0:00:07]} bxc5 {[%emt 0:00:32]} 15. Qd2 {[%emt 0:00:23]} Qd6 {[%emt 0:03:49]} 16. Qb2 {[%emt 0:03:09]} f6 {[%emt 0:01:37]} 17. Rfd1 {[%emt 0:01:00]} Rfd8 {[%emt 0:00:55]} 18. Ne1 {[%emt 0:03:16]} Qe6 {[%emt 0:02:02]} 19. Nd3 {[%emt 0:00:55]} d4 {[%emt 0:10:10]} 20. exd4 {[%emt 0:09:26]} cxd4 {[%emt 0:01:26]} 21. Bd2 {[%emt 0:02:44]} Qd7 {[%emt 0:03:36]} 22. Re1 {[%emt 0:03:24]} Bf8 {[%emt 0:01:28]} 23. b4 {[%emt 0:02:16]} Re8 {[%emt 0:02:40]} 24. Rxe8 {[%emt 0:06:21]} Rxe8 {[%emt 0:00:48]} 25. Qb3+ {[%emt 0:05:30]} Kh8 {[%emt 0:01:05]} 26. Qa4 {[%emt 0:03:07]} Rc8 {[%emt 0:02:48]} 27. b5 {[%emt 0:06:22]} Ne5 {[%emt 0:00:52]} 28. Nxe5 {[%emt 0:00:27]} Rxc1+ {[%emt 0:00:59]} 29. Bxc1 {[%emt 0:00:04]} fxe5 {[%emt 0:00:11]} 30. Qxa7 {[%emt 0:01:00]} Qc8 {[%emt 0:01:52]} 31. Qxb7 {[%emt 0:01:11]} Qxc1+ {[%emt 0:00:27]} 32. Bf1 {[%emt 0:00:04]} h6 {[%emt 0:06:10]} 33. Qb8 {[%emt 0:03:32]} Qc5 {[%emt 0:01:03]} 34. Bd3 {[%emt 0:03:12]} Qd6 {[%emt 0:01:22]} 35. Qe8 {[%emt 0:01:35]} Qe7 {[%emt 0:02:32]} 36. Qg6 {[%emt 0:00:08]} Kg8 {[%emt 0:00:20]} 37. b6 {[%emt 0:02:40]} Qd6 {[%emt 0:01:43]} 38. Qe8 {[%emt 0:02:18]} Qe7 {[%emt 0:02:21]} 39. Qa8 {[%emt 0:01:47]} Qa3 {[%emt 0:01:38]} 40. b7 {[%emt 0:01:17]} Qc1+ {[%emt 0:00:26]} 41. Bf1 {[%emt 0:00:11]} 1-0

[Event "XXXIX Benasque Open 2019"]
[Site "Benasque"]
[Date "2019.07.04"]
[Round "1.10"]
[White "Rollan Vallejos, Javier"]
[Black "Rasmussen, Allan Stig"]
[Result "0-1"]
[ECO "B13"]
[WhiteElo "1959"]
[BlackElo "2569"]
[Annotator "ChessBase"]
[PlyCount "58"]
[EventDate "2019.07.04"]
[EventType "swiss"]
[EventCountry "ESP"]
[SourceTitle "playchess.com"]
[Source "ChessBase"]
[SourceQuality "1"]
[TimeControl "5400+30"]

1. e4 c6 {[%emt 0:00:03]} 2. d4 {[%emt 0:00:00]} d5 {[%emt 0:00:07]} 3. exd5 {[%emt 0:00:19]} cxd5 {[%emt 0:00:06]} 4. Bd3 {[%emt 0:00:37]} Nc6 {[%emt 0:00:17]} 5. c3 {[%emt 0:00:24]} Qc7 {[%emt 0:01:29]} 6. Nf3 {[%emt 0:08:31]} Bg4 {[%emt 0:01:47]} 7. Nbd2 {[%emt 0:02:24]} e6 {[%emt 0:01:39]} 8. O-O {[%emt 0:08:28]} Bd6 {[%emt 0:00:43]} 9. Qc2 {[%emt 0:01:07]} Nge7 {[%emt 0:03:41]} 10. Re1 {[%emt 0:02:10]} O-O-O {[%emt 0:02:55]} 11. b4 {[%emt 0:04:31]} Kb8 {[%emt 0:11:29]} 12. b5 {[%emt 0:07:16]} Na5 {[%emt 0:01:11]} 13. a4 {[%emt 0:01:44]} Rc8 {[%emt 0:07:43]} 14. Ba3 {[%emt 0:04:01]} Bxa3 {[%emt 0:03:06]} 15. Rxa3 {[%emt 0:00:11]} Bf5 {[%emt 0:01:59]} 16. Rb1 {[%emt 0:16:42]} Qd6 {[%emt 0:03:13]} 17. Ra2 {[%emt 0:03:50]} f6 {[%emt 0:02:47]} 18. Nb3 {[%emt 0:02:19]} Nxb3 {[%emt 0:06:28]} 19. Rxb3 {[%emt 0:00:21]} Bg4 {[%emt 0:01:22]} 20. Nd2 {[%emt 0:02:53]} e5 {[%emt 0:00:12]} 21. Qb2 {[%emt 0:03:21]} Rhe8 {[%emt 0:03:38]} 22. Rb4 {[%emt 0:04:35]} Bf5 {[%emt 0:08:00]} 23. Bf1 {[%emt 0:02:42]} Ng6 {[%emt 0:17:16]} 24. Nb3 {[%emt 0:01:19]} Nf4 {[%emt 0:01:02]} 25. Nc5 {[%emt 0:13:07]} exd4 {[%emt 0:00:31]} 26. cxd4 Re1 {[%emt 0:01:09]} 27. Ra1 {[%emt 0:00:57]} Rce8 {[%emt 0:08:31]} 28. Rc1 {[%emt 0:01:30]} Ne2+ {[%emt 0:00:52]} 29. Kh1 Rxc1 {[%emt 0:00:16]} 0-1

[Event "XXXIX Benasque Open 2019"]
[Site "Benasque"]
[Date "2019.07.05"]
[Round "2.3"]
[White "Banusz, Tamas"]
[Black "Cortes Lizano, Jesus"]
[Result "1/2-1/2"]
[ECO "A04"]
[WhiteElo "2626"]
[BlackElo "2202"]
[Annotator "RC"]
[PlyCount "178"]
[EventDate "2019.07.04"]
[EventType "swiss"]
[EventCountry "ESP"]
[SourceTitle "playchess.com"]
[Source "ChessBase"]
[SourceQuality "1"]
[TimeControl "5400+30"]

1. Nf3 {[%emt 0:00:00]} g6 {[%emt 0:00:31]} 2. d4 {[%emt 0:00:28]} Bg7 {[%emt 0:00:11]} 3. c4 {[%emt 0:00:07]} d6 {[%emt 0:00:49]} 4. g3 {[%emt 0:01:00]} Nd7 {[%emt 0:01:04]} 5. Bg2 {[%emt 0:00:29]} e5 {[%emt 0:00:58]} 6. O-O {[%emt 0:00:39]} Ne7 {[%emt 0:00:40]} 7. Nc3 {[%emt 0:00:07]} O-O {[%emt 0:00:15]} 8. e4 {[%emt 0:00:41]} exd4 {[%emt 0:01:07]} 9. Nxd4 {[%emt 0:00:06]} Nc6 {[%emt 0:00:05]} 10. Nde2 {[%emt 0:00:17]} Nc5 {[%emt 0:00:24]} 11. Be3 {[%emt 0:02:16]} a5 {[%emt 0:00:13]} 12. Qc2 {[%emt 0:08:25]} f5 {[%emt 0:02:36]} 13. Rad1 {[%emt 0:02:41]} Qe8 {[%emt 0:01:16]} 14. Nb5 {[%emt 0:06:08]} Qf7 {[%emt 0:03:24]} 15. Nec3 {[%emt 0:09:29]} fxe4 {[%emt 0:09:03]} 16. Bxc5 {[%emt 0:04:22]} dxc5 {[%emt 0:00:06]} 17. Bxe4 {[%emt 0:00:10]} Nd4 {[%emt 0:05:30]} 18. Nxd4 {[%emt 0:00:08]} Bxd4 {[%emt 0:08:29]} 19. Nb5 {[%emt 0:01:00]} Qg7 {[%emt 0:00:07]} 20. Nxd4 {[%emt 0:00:56]} cxd4 {[%emt 0:00:07]} 21. c5 {[%emt 0:01:13]} Be6 {[%emt 0:06:20]} 22. Bxb7 {[%emt 0:03:21]} Rab8 {[%emt 0:02:28]} 23. Qe4 {[%emt 0:01:05]} Bxa2 {[%emt 0:00:28]} 24. Bd5+ {[%emt 0:10:39]} Bxd5 {[%emt 0:00:11]} 25. Qxd5+ {[%emt 0:00:01]} Kh8 26. Rd2 Rfd8 27. Qe4 {[%emt 0:05:26]} Qf6 {[%emt 0:20:26]} 28. Qd3 {[%emt 0:08:17]} Qe6 {[%emt 0:02:13]} 29. Qa3 {[%emt 0:00:44]} Rb5 {[%emt 0:01:03]} 30. Rfd1 {[%emt 0:04:02]} Qe5 {[%emt 0:01:10]} 31. c6 {[%emt 0:00:48]} Rbd5 {[%emt 0:00:15]} 32. Qd3 {[%emt 0:02:58]} Qf6 {[%emt 0:02:29]} 33. Qc4 {[%emt 0:01:02]} Kg7 {[%emt 0:03:29]} 34. Rd3 {[%emt 0:02:05]} h5 {[%emt 0:00:13]} 35. h4 {[%emt 0:00:10]} Qe5 {[%emt 0:01:01]} 36. Rf3 {[%emt 0:00:41]} Rf8 {[%emt 0:01:18]} 37. Rfd3 {[%emt 0:02:43]} Rfd8 {[%emt 0:00:20]} 38. Qa6 {[%emt 0:00:31]} Rc5 {[%emt 0:05:28]} 39. Qb7 {[%emt 0:04:18]} Kh6 {[%emt 0:03:29]} 40. R3d2 {[%emt 0:03:53]} Rb5 {[%emt 0:01:49]} 41. Qa7 {[%emt 0:00:08]} Rb6 {[%emt 0:00:44]} 42. Kh2 {[%emt 0:02:05]} Rxc6 {[%emt 0:04:43]} 43. Rxd4 {[%emt 0:01:37]} Rxd4 {[%emt 0:00:05]} 44. Rxd4 {[%emt 0:02:56]} Rc1 {[%emt 0:00:49]} 45. Ra4 {[%emt 0:04:25]} Qe1 {[%emt 0:02:50]} 46. Qe3+ {[%emt 0:00:07]} Qxe3 {[%emt 0:00:04]} 47. fxe3 {[%emt 0:00:02]} Rc2+ {[%emt 0:00:19]} 48. Kh3 {[%emt 0:00:08]} Rxb2 {[%emt 0:00:48]} 49. Rxa5 {[%emt 0:00:05]} Rb3 {[%emt 0:05:48]} 50. Re5 {[%emt 0:00:16]} Kg7 {[%emt 0:00:29]} 51. Kg2 {[%emt 0:00:39]} Kf6 {[%emt 0:00:31]} 52. Re8 {[%emt 0:00:05]} Kf7 {[%emt 0:01:18]} 53. Re4 {[%emt 0:00:04]} Rc3 {[%emt 0:00:36]} 54. Kf3 {[%emt 0:00:35]} Rc5 {[%emt 0:00:48]} 55. Ra4 {[%emt 0:00:29]} Rc1 {[%emt 0:00:51]} 56. Ra6 {[%emt 0:02:11]} Rf1+ {[%emt 0:01:02]} 57. Ke4 {[%emt 0:00:17]} Rg1 {[%emt 0:00:34]} 58. Kf3 {[%emt 0:02:12]} Rf1+ {[%emt 0:00:10]} 59. Ke2 {[%emt 0:00:05]} Rg1 {[%emt 0:00:26]} 60. Kf2 {[%emt 0:00:06]} Rc1 {[%emt 0:00:06]} 61. Kg2 {[%emt 0:00:23]} Rc3 {[%emt 0:00:37]} 62. Kf3 {[%emt 0:00:09]} Rc1 {[%emt 0:00:23]} 63. e4 {[%emt 0:00:00]} Rf1+ {[%emt 0:00:31]} 64. Ke3 {[%emt 0:00:00]} Rg1 {[%emt 0:00:44]} 65. Kf4 {[%emt 0:00:00]} Rf1+ {[%emt 0:00:28]} 66. Ke5 {[%emt 0:00:00]} Rc1 {[%emt 0:00:32]} 67. Rf6+ {[%emt 0:00:04]} Kg7 {[%emt 0:00:06]} 68. Rf3 {[%emt 0:00:05]} Rc6 {[%emt 0:01:01]} 69. Rd3 {[%emt 0:00:05]} Kh6 {[%emt 0:00:39]} 70. Rd7 {[%emt 0:00:39]} g5 {[%emt 0:01:57]} 71. Kf5 {[%emt 0:00:13]} gxh4 {[%emt 0:00:41]} 72. gxh4 {[%emt 0:00:02]} Rc1 {[%emt 0:00:18]} 73. e5 {[%emt 0:00:38]} Rf1+ {[%emt 0:00:17]} 74. Ke6 {[%emt 0:00:22]} Rf4 {[%emt 0:00:21]} 75. Rd5 {[%emt 0:04:35]} Rxh4 {[%emt 0:00:57]} 76. Kd7 {[%emt 0:00:01]} c6 {[%emt 0:02:21]} 77. Rd6+ {[%emt 0:03:21]} Kg5 {[%emt 0:00:12]} 78. e6 {[%emt 0:03:16]} Re4 {[%emt 0:00:25]} 79. e7 {[%emt 0:00:23]} Rxe7+ {[%emt 0:00:17]} 80. Kxe7 {[%emt 0:00:01]} h4 {[%emt 0:00:08]} 81. Ke6 {[%emt 0:00:15]} h3 {[%emt 0:00:55]} 82. Ke5 {[%emt 0:00:14]} Kg4 {[%emt 0:00:27]} 83. Ke4 {[%emt 0:00:28]} h2 {[%emt 0:00:46]} 84. Rh6 {[%emt 0:00:38]} Kg3 {[%emt 0:00:06]} 85. Ke3 {[%emt 0:00:12]} Kg2 {[%emt 0:00:10]} 86. Rg6+ {[%emt 0:00:07]} Kf1 {[%emt 0:00:20]} 87. Rxc6 {[%emt 0:01:00]} h1=Q {[%emt 0:00:09]} 88. Rc1+ {[%emt 0:00:02]} Kg2 {[%emt 0:00:06]} 89. Rxh1 {[%emt 0:00:01]} Kxh1 1/2-1/2

[Event "XXXIX Benasque Open 2019"]
[Site "Benasque"]
[Date "2019.07.05"]
[Round "2.4"]
[White "Ter-Sahakyan, Samvel"]
[Black "Lucas Vega, Ivan"]
[Result "1-0"]
[ECO "D37"]
[WhiteElo "2625"]
[BlackElo "2196"]
[Annotator "RC"]
[PlyCount "65"]
[EventDate "2019.07.04"]
[EventType "swiss"]
[EventCountry "ESP"]
[SourceTitle "playchess.com"]
[Source "ChessBase"]
[SourceQuality "1"]
[TimeControl "5400+30"]

1. d4 {[%emt 0:00:00]} d5 {[%emt 0:00:00]} 2. c4 {[%emt 0:00:00]} e6 {[%emt 0:00:00]} 3. Nc3 {[%emt 0:00:02]} Nf6 {[%emt 0:00:00]} 4. Nf3 {[%emt 0:00:43]} Be7 {[%emt 0:00:33]} 5. Bf4 {[%emt 0:01:11]} O-O {[%emt 0:01:22]} 6. e3 {[%emt 0:00:07]} a6 {[%emt 0:06:45]} 7. a3 {[%emt 0:07:52]} Nbd7 {[%emt 0:08:17]} 8. c5 {[%emt 0:02:58]} Nh5 {[%emt 0:07:57]} 9. Bd3 {[%emt 0:00:44]} Nxf4 {[%emt 0:04:31]} 10. exf4 {[%emt 0:00:05]} Re8 {[%emt 0:13:04]} 11. Qc2 {[%emt 0:03:24]} Nf8 {[%emt 0:00:42]} 12. O-O {[%emt 0:01:58]} c6 {[%emt 0:03:30]} 13. b4 {[%emt 0:01:02]} Qc7 {[%emt 0:01:35]} 14. g3 {[%emt 0:00:21]} g6 {[%emt 0:07:24]} 15. h4 {[%emt 0:02:03]} h5 {[%emt 0:07:47]} 16. Kg2 {[%emt 0:01:16]} Bf6 {[%emt 0:03:02]} 17. Ne5 {[%emt 0:00:43]} Bg7 {[%emt 0:01:44]} 18. a4 {[%emt 0:06:03]} f5 19. b5 Bxe5 {[%emt 0:10:27]} 20. fxe5 {[%emt 0:01:35]} axb5 {[%emt 0:02:09]} 21. axb5 {[%emt 0:00:08]} Bd7 {[%emt 0:00:51]} 22. b6 {[%emt 0:00:28]} Qb8 {[%emt 0:01:15]} 23. Qd2 {[%emt 0:00:27]} Kg7 {[%emt 0:01:16]} 24. Ne2 {[%emt 0:01:07]} Rxa1 {[%emt 0:02:26]} 25. Rxa1 {[%emt 0:00:06]} Qd8 {[%emt 0:01:10]} 26. Qg5 {[%emt 0:05:18]} Qxg5 {[%emt 0:04:17]} 27. hxg5 {[%emt 0:00:05]} Nh7 {[%emt 0:05:24]} 28. Ra7 {[%emt 0:01:11]} Rb8 {[%emt 0:02:15]} 29. f4 {[%emt 0:00:19]} Nf8 {[%emt 0:01:34]} 30. Nc1 {[%emt 0:00:36]} Bc8 {[%emt 0:01:29]} 31. Nb3 {[%emt 0:00:13]} Kf7 {[%emt 0:01:16]} 32. Na5 {[%emt 0:00:26]} Nd7 {[%emt 0:01:25]} 33. Ba6 {[%emt 0:01:23]} 1-0